fUST/lending_fUST_20250802
["ID","MTS","AMOUNT","RATE_DAILY","PERIOD"]
[376741679,1754095847864,-581.88,0.00024167,2]
[376741681,1754095847874,-462.66,0.00024167,2]
[376741683,1754095847884,-625.0,0.00024168,2]
[376741685,1754095847894,-784.46,0.00024168,2]
[376741687,1754095847904,-486.63,0.00024168,2]
[376741689,1754095847915,-151.0,0.000242,9]
[376741691,1754095847924,-3325.02687053,0.00024217,2]
[376741693,1754095847935,-1838.0,0.00024227,5]
[376741695,1754095847944,-1273.87587132,0.00024314,10]
[376741697,1754095847954,-159.29,0.00024333,7]
[376741699,1754095847964,-152.47,0.00024335,7]
[376741701,1754095847974,-500.0,0.00024383,10]
[376741703,1754095847983,-500.0,0.00024383,10]
[376741705,1754095847993,-500.0,0.00024383,10]
[376741707,1754095848002,-500.0,0.00024383,10]
[376741709,1754095848012,-500.0,0.00024383,10]
[376741711,1754095848021,-500.0,0.00024383,10]
[376741713,1754095848031,-500.0,0.00024383,10]
[376741715,1754095848041,-500.0,0.00024383,10]
[376741717,1754095848051,-500.0,0.00024383,10]
[376741719,1754095848061,-500.0,0.00024383,10]
[376741720,1754095848074,-500.0,0.00024383,10]
[376741722,1754095848084,-500.0,0.00024383,10]
[376741724,1754095848094,-500.0,0.00024383,10]
[376741726,1754095848104,-500.0,0.00024383,10]
[376741728,1754095848113,-500.0,0.00024383,10]
[376741730,1754095848123,-500.0,0.00024383,10]
[376741732,1754095848132,-500.0,0.00024383,10]
[376741734,1754095848142,-500.0,0.00024383,10]
[376741736,1754095848151,-232.73,0.00024383,10]
[376741738,1754095848161,-215.03686253,0.0002439,10]
[376741740,1754095848171,-460.76838597,0.0002439,10]
[376741742,1754095848181,-312.16666667,0.0002439,10]
[376741744,1754095848190,-841.53699354,0.0002439,10]
[376741746,1754095848201,-526.925583,0.0002439,10]
[376741748,1754095848211,-151.0,0.000244,8]
[376741750,1754095848221,-159.29,0.00024433,7]
[376741752,1754095848231,-152.47,0.00024435,7]
[376741754,1754095848242,-2517.13,0.00024439,2]
[376741756,1754095848252,-710.96,0.00024439,2]
[376741758,1754095848262,-1023.05,0.00024439,2]
[376741760,1754095848272,-628.37,0.0002444,2]
[376741761,1754095848281,-752.34,0.0002444,2]
[376741763,1754095848295,-632.24,0.0002444,2]
[376741765,1754095848304,-1619.55,0.0002444,2]
[376741767,1754095848315,-460.0,0.0002444,2]
[376741769,1754095848325,-581.88,0.00024441,2]
[376741771,1754095848335,-462.66,0.00024441,2]
[376741773,1754095848346,-625.0,0.00024442,2]
[376741775,1754095848355,-784.46,0.00024442,2]
[376741777,1754095848365,-486.63,0.00024442,2]
[376741779,1754095848375,-157.0,0.000245,4]
[376741781,1754095848385,-157.0,0.000245,4]
[376741783,1754095848395,-157.0,0.000245,4]
[376741785,1754095848405,-157.0,0.000245,5]
[376741787,1754095848415,-157.0,0.000245,5]
[376741789,1754095848424,-159.29,0.00024533,7]
[376741791,1754095848435,-152.47,0.00024535,7]
[376741793,1754095848445,-460.04,0.00024537,2]
[376741795,1754095848454,-1273.87587132,0.0002459,11]
[376741797,1754095848464,-1838.0,0.00024596,6]
[376741798,1754095848473,-276.2,0.000246,2]
[376741800,1754095848484,-151.0,0.000246,5]
[376741802,1754095848499,-159.29,0.00024633,7]
[376741804,1754095848509,-152.47,0.00024635,7]
[376741806,1754095848519,-500.0,0.00024657,2]
[376741808,1754095848529,-150.0,0.00024684,2]
[376741810,1754095848538,-2517.13,0.00024713,2]
[376741812,1754095848548,-710.96,0.00024713,2]
[376741814,1754095848557,-1023.05,0.00024713,2]
[376741816,1754095848568,-628.37,0.00024714,2]
[376741818,1754095848578,-752.34,0.00024714,2]
[376741820,1754095848587,-632.24,0.00024714,2]
[376741821,1754095848597,-1619.55,0.00024714,2]
[376741823,1754095848606,-460.0,0.00024714,2]
[376741825,1754095848616,-581.88,0.00024715,2]
[376741827,1754095848626,-462.66,0.00024715,2]
[376741829,1754095848636,-625.0,0.00024715,2]
[376741831,1754095848645,-784.46,0.00024716,2]
[376741833,1754095848655,-486.63,0.00024716,2]
[376741835,1754095848665,-159.31,0.00024733,7]
[376741837,1754095848675,-152.47,0.00024735,7]
[376741838,1754095848685,-5700.91,0.000248,7]
[376741840,1754095848695,-151.0,0.000248,7]
[376741841,1754095848704,-151.0,0.000248,7]
[376741843,1754095848714,-151.0,0.000248,7]
[376741845,1754095848724,-151.0,0.000248,7]
[376741847,1754095848734,-151.0,0.000248,7]
[376741848,1754095848747,-255.47129339,0.00024816,2]
[376741850,1754095848757,-867.70903189,0.00024835,2]
[376741852,1754095848767,-152.47,0.00024835,7]
[376741854,1754095848776,-1273.87587132,0.00024866,12]
[376741856,1754095848787,-823.0,0.0002489,2]
[376741858,1754095848797,-59999.0,0.00024891,2]
[376741859,1754095848808,-11438.19,0.000249,2]
[376741861,1754095848820,-151.0,0.000249,10]
[376741863,1754095848831,-654.61,0.000249,7]
[376741865,1754095848841,-151.0,0.000249,7]
[376741867,1754095848851,-151.0,0.000249,7]
[376741878,1754095848980,-151.0,0.000249,7]
[376741880,1754095848991,-151.0,0.000249,7]
[376741882,1754095849002,-151.0,0.000249,7]
[376741884,1754095849012,-151.0,0.000249,7]
[376741886,1754095849023,-151.0,0.000249,7]
[376741887,1754095849034,-41201.66842388,0.000249,2]
[376741906,1754095849554,290.89,0.00027079,120]
[376742208,1754095887800,224.8901674,0.00026027,120]
[376742216,1754095971572,24900.0,0.00018918,2]
[376742220,1754096184262,161.965046,0.00013699,2]
[376742221,1754096251303,200.0,0.00025817,120]
[376742222,1754096283259,442.42508961,0.00027065,30]
[376742228,1754096311798,200.0,0.00025906,120]
[376742244,1754096685954,500.0,0.00026027,120]
[376742245,1754096700664,482.1,0.00026027,120]
[376742248,1754096902960,827.31408339,0.00027071,30]
[376742287,1754097032410,-300.0,0.00019232,2]
[376742288,1754097032420,-491.1,0.00019233,2]
[376742289,1754097032430,-460.0,0.00019233,2]
[376742290,1754097032439,-703.52,0.00019233,2]
[376742291,1754097032448,-460.0,0.00019233,2]
[376742292,1754097032457,-460.0,0.00019233,2]
[376742293,1754097032467,-460.0,0.00019233,2]
[376742294,1754097032476,-460.0,0.00019233,2]
[376742295,1754097032485,-460.0,0.00019233,2]
[376742296,1754097032494,-460.0,0.00019233,2]
[376742297,1754097032504,-460.0,0.00019233,2]
[376742298,1754097032513,-460.0,0.00019233,2]
[376742299,1754097032522,-184.24666567,0.00019233,2]
[376742300,1754097032535,-275.75333433,0.00019233,2]
[376742301,1754097032544,-460.0,0.00019233,2]
[376742302,1754097032553,-149.17036248,0.00019233,2]
[376742624,1754097038215,-361.03963752,0.00019233,2]
[376742626,1754097038225,-300.0,0.00019233,2]
[376742628,1754097038235,-942.84,0.00019233,2]
[376742630,1754097038244,-392.61491274,0.00019234,2]
[376742632,1754097038254,-460.0,0.00019234,2]
[376742634,1754097038263,-460.0,0.00019234,2]
[376742636,1754097038272,-460.0,0.00019234,2]
[376742638,1754097038282,-460.0,0.00019234,2]
[376742640,1754097038292,-265.66754637,0.00019234,2]
[376742642,1754097038304,-194.33245363,0.00019234,2]
[376742644,1754097038313,-460.0,0.00019234,2]
[376742646,1754097038322,-460.0,0.00019234,2]
[376742648,1754097038332,-152.13591053,0.00019234,2]
[376742650,1754097038341,-508.57314319,0.00019234,2]
[376742652,1754097038350,-347.84951533,0.00019234,2]
[376742657,1754097038379,-112.15048467,0.00019234,2]
[376742659,1754097038389,-460.0,0.00019234,2]
[376742661,1754097038398,-460.0,0.00019234,2]
[376742663,1754097038407,-460.0,0.00019234,2]
[376742665,1754097038417,-460.0,0.00019234,2]
[376742667,1754097038427,-460.0,0.00019234,2]
[376742669,1754097038438,-460.0,0.00019234,2]
[376742670,1754097038448,-460.0,0.00019234,2]
[376742672,1754097038457,-460.0,0.00019234,2]
[376742674,1754097038467,-460.0,0.00019234,2]
[376742676,1754097038477,-460.0,0.00019234,2]
[376742678,1754097038487,-493.96,0.00019234,2]
[376742680,1754097038496,-460.0,0.00019234,2]
[376742682,1754097038505,-1068.73,0.00019234,2]
[376742684,1754097038515,-460.0,0.00019234,2]
[376742686,1754097038524,-460.0,0.00019234,2]
[376742688,1754097038533,-460.0,0.00019234,2]
[376742690,1754097038542,-460.0,0.00019234,2]
[376742692,1754097038552,-534.9,0.00019234,2]
[376742694,1754097038561,-460.0,0.00019234,2]
[376742696,1754097038571,-292.53,0.00019234,2]
[376742698,1754097038580,-248.56,0.00019234,2]
[376742700,1754097038589,-460.0,0.00019234,2]
[376742702,1754097038599,-623.02,0.00019234,2]
[376742704,1754097038608,-460.0,0.00019504,2]
[376742706,1754097038617,-460.0,0.00019504,2]
[376742708,1754097038626,-2602.83,0.00019504,2]
[376742710,1754097038636,-460.0,0.00019504,2]
[376742712,1754097038645,-544.84,0.00019504,2]
[376742714,1754097038655,-460.0,0.00019504,2]
[376742716,1754097038664,-1139.09,0.00019504,2]
[376742718,1754097038673,-460.0,0.00019504,2]
[376742720,1754097038683,-246.91974592,0.00019505,2]
[376742722,1754097038692,-460.0,0.00019505,2]
[376742724,1754097038702,-460.0,0.00019505,2]
[376742726,1754097038711,-460.0,0.00019505,2]
[376742728,1754097038722,-460.0,0.00019505,2]
[376742730,1754097038732,-460.0,0.00019505,2]
[376742732,1754097038741,-460.0,0.00019505,2]
[376742734,1754097038750,-312.03498412,0.00019505,2]
[376742736,1754097038760,-460.0,0.00019505,2]
[376742738,1754097038769,-460.0,0.00019505,2]
[376742740,1754097038778,-462.16,0.00019505,2]
[376742742,1754097038788,-460.0,0.00019505,2]
[376742744,1754097038797,-460.0,0.00019505,2]
[376742746,1754097038807,-460.0,0.00019505,2]
[376742762,1754097038947,-470.53770146,0.00019505,2]
[376742765,1754097038962,-609.73124727,0.00019505,2]
[376742767,1754097038971,-460.0,0.00019505,2]
[376742769,1754097038981,-460.0,0.00019505,2]
[376742770,1754097038990,-460.0,0.00019505,2]
[376742772,1754097039000,-604.6,0.00019505,2]
[376742774,1754097039010,-460.0,0.00019505,2]
[376742777,1754097039020,-460.0,0.00019505,2]
[376742779,1754097039030,-460.0,0.00019505,2]
[376742781,1754097039039,-460.0,0.00019505,2]
[376742783,1754097039048,-562.85,0.00019505,2]
[376742785,1754097039058,-460.0,0.00019505,2]
[376742787,1754097039067,-460.0,0.00019505,2]
[376742789,1754097039077,-460.0,0.00019505,2]
[376742791,1754097039087,-314.98,0.00019505,2]
[376742792,1754097039098,-460.0,0.00019505,2]
[376742794,1754097039108,-571.47,0.00019505,2]
[376742796,1754097039117,-460.0,0.00019505,2]
[376742798,1754097039128,-460.0,0.00019505,2]
[376742800,1754097039137,-460.0,0.00019505,2]
[376742802,1754097039146,-460.0,0.00019505,2]
[376742804,1754097039156,-460.0,0.00019505,2]
[376742807,1754097039167,-460.0,0.00019505,2]
[376742808,1754097039176,-460.0,0.00019505,2]
[376742810,1754097039185,-460.0,0.00019505,2]
[376742813,1754097039195,-460.0,0.00019505,2]
[376742814,1754097039204,-634.61,0.00019506,2]
[376742816,1754097039214,-506.92,0.00019506,2]
[376742818,1754097039224,-460.0,0.00019506,2]
[376742821,1754097039233,-460.0,0.00019507,2]
[376742822,1754097039243,-491.1,0.00019507,2]
[376742824,1754097039252,-703.52,0.00019507,2]
[376742826,1754097039262,-1974.69,0.00019507,2]
[376742828,1754097039270,-441.04,0.00019507,2]
[376742830,1754097039279,-529.13,0.00019507,2]
[376742832,1754097039288,-261.57,0.00019507,2]
[376742834,1754097039298,-460.0,0.00019507,2]
[376742836,1754097039307,-183.63,0.00019507,2]
[376742838,1754097039316,-460.0,0.00019507,2]
[376742840,1754097039326,-460.0,0.00019507,2]
[376742842,1754097039335,-460.0,0.00019507,2]
[376742844,1754097039344,-460.0,0.00019507,2]
[376742846,1754097039353,-460.0,0.00019507,2]
[376742848,1754097039362,-510.21,0.00019507,2]
[376742850,1754097039371,-460.0,0.00019507,2]
[376742852,1754097039380,-942.84,0.00019507,2]
[376742854,1754097039388,-460.0,0.00019508,2]
[376742856,1754097039398,-460.0,0.00019508,2]
[376742858,1754097039407,-460.0,0.00019508,2]
[376742860,1754097039416,-460.0,0.00019508,2]
[376742861,1754097039425,-460.0,0.00019508,2]
[376742863,1754097039434,-460.0,0.00019508,2]
[376742865,1754097039443,-537.87,0.00019508,2]
[376742867,1754097039453,-460.0,0.00019508,2]
[376742869,1754097039462,-460.0,0.00019508,2]
[376742871,1754097039473,-376.85,0.00019508,2]
[376742873,1754097039482,-1068.73,0.00019508,2]
[376742875,1754097039491,-460.0,0.00019508,2]
[376742877,1754097039504,-460.0,0.00019508,2]
[376742879,1754097039513,-460.0,0.00019508,2]
[376742881,1754097039522,-460.0,0.00019508,2]
[376742883,1754097039531,-623.02,0.00019508,2]
[376742886,1754097039540,-500.0,0.00019573,2]
[376742888,1754097039550,-200.0,0.00019617,15]
[376742890,1754097039559,-200.0,0.00019617,15]
[376742893,1754097039570,-200.0,0.00019617,15]
[376742895,1754097039579,-200.0,0.00019617,15]
[376742896,1754097039589,-2602.83,0.00019778,2]
[376742898,1754097039598,-460.0,0.00019778,2]
[376742902,1754097039617,-1139.09,0.00019778,2]
[376742904,1754097039627,-460.0,0.00019778,2]
[376742906,1754097039637,-460.0,0.00019779,2]
[376742908,1754097039647,-460.0,0.00019779,2]
[376742910,1754097039656,-562.85,0.00019779,2]
[376742912,1754097039666,-460.0,0.00019779,2]
[376742914,1754097039676,-392.1918525,0.00019779,2]
[376742916,1754097039685,-460.0,0.00019779,2]
[376742918,1754097039695,-460.0,0.00019779,2]
[376742920,1754097039705,-460.0,0.00019779,2]
[376742922,1754097039715,-460.0,0.00019779,2]
[376742924,1754097039725,-460.0,0.00019779,2]
[376742926,1754097039735,-376.03,0.00019779,2]
[376742928,1754097039745,-634.61,0.0001978,2]
[376742930,1754097039755,-506.92,0.0001978,2]
[376742933,1754097039765,-460.0,0.0001978,2]
[376742936,1754097039775,-460.0,0.00019781,2]
[376742940,1754097039784,-491.1,0.00019781,2]
[376742943,1754097039795,-703.52,0.00019781,2]
[376742946,1754097039804,-1974.69,0.00019781,2]
[376742949,1754097039815,-529.13,0.00019781,2]
[376742952,1754097039825,-460.0,0.00019781,2]
[376742955,1754097039835,-460.0,0.00019781,2]
[376742958,1754097039845,-460.0,0.00019781,2]
[376742961,1754097039854,-460.0,0.00019781,2]
[376742964,1754097039863,-460.0,0.00019781,2]
[376742967,1754097039872,-460.0,0.00019781,2]
[376742970,1754097039882,-510.21,0.00019781,2]
[376742973,1754097039891,-942.84,0.00019781,2]
[376742976,1754097039900,-460.0,0.00019782,2]
[376742979,1754097039910,-562.16,0.00019782,2]
[376742982,1754097039919,-460.0,0.00019782,2]
[376742984,1754097039929,-460.0,0.00019782,2]
[376742987,1754097039938,-306.02,0.00019782,2]
[376742990,1754097039948,-460.0,0.00019782,2]
[376742993,1754097039957,-460.0,0.00019782,2]
[376742996,1754097039967,-1068.73,0.00019782,2]
[376742998,1754097039977,-460.0,0.00019782,2]
[376743001,1754097039987,-460.0,0.00019782,2]
[376743004,1754097039996,-460.0,0.00019782,2]
[376743007,1754097040006,-460.0,0.00019782,2]
[376743010,1754097040016,-623.02,0.00019782,2]
[376743013,1754097040026,-333.46543847,0.00019868,2]
[376743016,1754097040035,-1573.28936072,0.000199,2]
[376743019,1754097040044,-151.0,0.0002,2]
[376743021,1754097040054,-2602.83,0.00020052,2]
[376743023,1754097040064,-579.90570738,0.00020052,2]
[376743025,1754097040074,-1139.09,0.00020052,2]
[376743028,1754097040084,-162.09124727,0.00020053,2]
[376743030,1754097040097,-600.81,0.00020053,2]
[376743032,1754097040106,-562.85,0.00020053,2]
[376743034,1754097040115,-430.40151387,0.00020053,2]
[376743036,1754097040125,-460.0,0.00020053,2]
[376743038,1754097040135,-306.2931776,0.00020053,2]
[376743040,1754097040144,-460.0,0.00020053,2]
[376743042,1754097040153,-460.0,0.00020053,2]
[376743044,1754097040163,-460.0,0.00020053,2]
[376743046,1754097040173,-634.61,0.00020054,2]
[376743048,1754097040182,-506.92,0.00020054,2]
[376743050,1754097040191,-460.0,0.00020054,2]
[376743052,1754097040201,-460.0,0.00020055,2]
[376743054,1754097040210,-491.1,0.00020055,2]
[376743056,1754097040220,-703.52,0.00020055,2]
[376743058,1754097040229,-1974.69,0.00020055,2]
[376743060,1754097040239,-529.13,0.00020055,2]
[376743062,1754097040248,-321.87472324,0.00020055,2]
[376743064,1754097040257,-502.05,0.00020055,2]
[376743066,1754097040267,-460.0,0.00020055,2]
[376743068,1754097040276,-460.0,0.00020055,2]
[376743070,1754097040285,-460.0,0.00020055,2]
[376743071,1754097040294,-460.0,0.00020055,2]
[376743073,1754097040304,-510.21,0.00020055,2]
[376743076,1754097040314,-942.84,0.00020055,2]
[376743077,1754097040323,-460.0,0.00020056,2]
[376743079,1754097040332,-460.0,0.00020056,2]
[376743081,1754097040342,-460.0,0.00020056,2]
[376743083,1754097040351,-213.71153145,0.00020056,2]
[376743085,1754097040360,-1068.73,0.00020056,2]
[376743087,1754097040370,-460.0,0.00020056,2]
[376743089,1754097040379,-460.0,0.00020056,2]
[376743091,1754097040388,-460.0,0.00020056,2]
[376743093,1754097040398,-460.0,0.00020056,2]
[376743095,1754097040408,-623.02,0.00020056,2]
[376743097,1754097040418,-1000.0,0.00020121,2]
[376743099,1754097040427,-1573.28936043,0.00020176,2]
[376743100,1754097040436,-2602.83,0.00020326,2]
[376743101,1754097040445,-1139.09,0.00020326,2]
[376743102,1754097040454,-562.85,0.00020327,2]
[376743103,1754097040464,-460.0,0.00020327,2]
[376743104,1754097040473,-460.0,0.00020327,2]
[376743105,1754097040482,-460.0,0.00020327,2]
[376743106,1754097040491,-460.0,0.00020327,2]
[376743107,1754097040499,-634.61,0.00020328,2]
[376743108,1754097040508,-506.92,0.00020328,2]
[376743109,1754097040517,-460.0,0.00020328,2]
[376743110,1754097040526,-460.0,0.00020329,2]
[376743111,1754097040536,-491.1,0.00020329,2]
[376743112,1754097040544,-703.52,0.00020329,2]
[376743113,1754097040553,-1974.69,0.00020329,2]
[376743114,1754097040563,-529.13,0.00020329,2]
[376743115,1754097040572,-460.0,0.00020329,2]
[376743116,1754097040581,-460.0,0.00020329,2]
[376743117,1754097040590,-496.47,0.00020329,2]
[376743118,1754097040599,-472.81,0.00020329,2]
[376743119,1754097040608,-510.21,0.00020329,2]
[376743120,1754097040617,-942.84,0.00020329,2]
[376743121,1754097040627,-460.0,0.0002033,2]
[376743122,1754097040635,-460.0,0.0002033,2]
[376743123,1754097040644,-460.0,0.0002033,2]
[376743124,1754097040653,-1068.73,0.0002033,2]
[376743126,1754097040662,-460.0,0.0002033,2]
[376743128,1754097040671,-217.77,0.0002033,2]
[376743130,1754097040680,-460.0,0.0002033,2]
[376743132,1754097040690,-623.02,0.0002033,2]
[376743134,1754097040699,-518.95234384,0.00020373,2]
[376743136,1754097040708,-500.0,0.00020373,2]
[376743138,1754097040717,-421.83016461,0.00020373,2]
[376743140,1754097040727,-500.0,0.00020373,2]
[376743142,1754097040736,-151.0,0.00020389,2]
[376743144,1754097040745,-151.0,0.00020389,2]
[376743146,1754097040754,-151.0,0.00020389,2]
[376743148,1754097040763,-2030.296672,0.00020389,2]
[376743150,1754097040773,-151.0,0.00020389,2]
[376743152,1754097040782,-151.0,0.00020389,2]
[376743154,1754097040791,-151.0,0.00020389,2]
[376743156,1754097040800,-151.0,0.00020389,2]
[376743158,1754097040809,-151.0,0.00020389,2]
[376743159,1754097040819,-151.0,0.00020389,2]
[376743161,1754097040829,-151.0,0.00020389,2]
[376743164,1754097040839,-151.0,0.00020389,2]
[376743166,1754097040848,-151.0,0.00020389,2]
[376743167,1754097040857,-151.0,0.00020389,2]
[376743169,1754097040866,-151.0,0.00020389,2]
[376743171,1754097040876,-500.0,0.00020389,2]
[376743173,1754097040885,-151.0,0.00020389,2]
[376743175,1754097040895,-151.0,0.00020389,2]
[376743177,1754097040904,-500.0,0.00020389,2]
[376743179,1754097040913,-151.0,0.00020389,2]
[376743181,1754097040923,-151.0,0.00020389,2]
[376743183,1754097040932,-500.0,0.00020389,2]
[376743185,1754097040941,-151.0,0.00020389,2]
[376743187,1754097040951,-500.0,0.00020389,2]
[376743189,1754097040961,-151.0,0.00020389,2]
[376743191,1754097040970,-151.0,0.00020389,2]
[376743193,1754097040980,-500.0,0.00020389,2]
[376743195,1754097040989,-151.0,0.00020389,2]
[376743197,1754097040999,-151.0,0.00020389,2]
[376743199,1754097041009,-500.0,0.00020389,2]
[376743201,1754097041019,-151.0,0.00020389,2]
[376743203,1754097041029,-151.0,0.00020389,2]
[376743205,1754097041038,-500.0,0.00020389,2]
[376743207,1754097041047,-151.0,0.00020389,2]
[376743209,1754097041056,-500.0,0.00020389,2]
[376743211,1754097041066,-151.0,0.00020389,2]
[376743213,1754097041076,-500.0,0.00020389,2]
[376743215,1754097041088,-151.0,0.00020389,2]
[376743217,1754097041098,-500.0,0.00020389,2]
[376743219,1754097041107,-151.0,0.00020389,2]
[376743221,1754097041116,-500.0,0.00020389,2]
[376743223,1754097041125,-151.0,0.00020389,2]
[376743225,1754097041135,-151.0,0.00020389,2]
[376743227,1754097041144,-151.0,0.00020389,2]
[376743229,1754097041153,-151.0,0.00020389,2]
[376743231,1754097041162,-151.0,0.00020389,2]
[376743233,1754097041171,-151.0,0.00020389,2]
[376743235,1754097041180,-151.0,0.00020389,2]
[376743237,1754097041189,-151.0,0.00020389,2]
[376743239,1754097041198,-151.0,0.00020389,2]
[376743241,1754097041207,-151.0,0.00020389,2]
[376743243,1754097041216,-151.0,0.00020389,2]
[376743245,1754097041226,-151.0,0.00020389,2]
[376743247,1754097041235,-151.0,0.00020389,2]
[376743249,1754097041245,-151.0,0.00020389,2]
[376743251,1754097041254,-151.0,0.00020389,2]
[376743253,1754097041263,-151.0,0.00020389,2]
[376743255,1754097041272,-151.0,0.00020389,2]
[376743256,1754097041281,-151.0,0.00020389,2]
[376743258,1754097041290,-151.0,0.00020389,2]
[376743260,1754097041299,-151.0,0.00020389,2]
[376743262,1754097041308,-151.0,0.00020389,2]
[376743264,1754097041318,-151.0,0.00020389,2]
[376743266,1754097041327,-1524.87866463,0.00020444,2]
[376743268,1754097041336,-1573.28936043,0.00020452,3]
[376743270,1754097041345,-2602.83,0.000206,2]
[376743272,1754097041354,-1139.09,0.000206,2]
[376743274,1754097041363,-562.85,0.00020601,2]
[376743276,1754097041373,-460.0,0.00020601,2]
[376743278,1754097041382,-460.0,0.00020601,2]
[376743280,1754097041391,-460.0,0.00020601,2]
[376743282,1754097041400,-460.0,0.00020601,2]
[376743284,1754097041410,-634.61,0.00020602,2]
[376743286,1754097041419,-506.92,0.00020602,2]
[376743288,1754097041429,-460.0,0.00020602,2]
[376743290,1754097041438,-491.1,0.00020603,2]
[376743292,1754097041447,-703.52,0.00020603,2]
[376743294,1754097041455,-1974.69,0.00020603,2]
[376743296,1754097041464,-529.13,0.00020603,2]
[376743298,1754097041473,-460.0,0.00020603,2]
[376743300,1754097041482,-460.0,0.00020603,2]
[376743302,1754097041493,-510.21,0.00020603,2]
[376743304,1754097041502,-942.84,0.00020603,2]
[376743306,1754097041511,-460.0,0.00020604,2]
[376743308,1754097041520,-460.0,0.00020604,2]
[376743310,1754097041530,-460.0,0.00020604,2]
[376743312,1754097041539,-1068.73,0.00020604,2]
[376743314,1754097041548,-460.0,0.00020604,2]
[376743316,1754097041558,-623.02,0.00020604,2]
[376743318,1754097041567,-151.0,0.000207,3]
[376743320,1754097041576,-168.79,0.00020715,2]
[376743322,1754097041585,-1573.28936043,0.00020728,3]
[376743324,1754097041595,-2602.83,0.00020874,2]
[376743326,1754097041603,-1139.09,0.00020874,2]
[376743328,1754097041612,-562.85,0.00020875,2]
[376743330,1754097041621,-184.9625048,0.00020875,2]
[376743332,1754097041631,-460.0,0.00020875,2]
[376743334,1754097041640,-460.0,0.00020875,2]
[376743336,1754097041649,-460.0,0.00020875,2]
[376743338,1754097041658,-634.61,0.00020876,2]
[376743340,1754097041667,-506.92,0.00020876,2]
[376743342,1754097041676,-460.0,0.00020876,2]
[376743344,1754097041685,-491.1,0.00020877,2]
[376743346,1754097041694,-703.52,0.00020877,2]
[376743348,1754097041703,-1974.69,0.00020877,2]
[376743350,1754097041713,-529.13,0.00020877,2]
[376743352,1754097041722,-460.0,0.00020877,2]
[376743353,1754097041732,-460.0,0.00020877,2]
[376743355,1754097041741,-510.21,0.00020877,2]
[376743357,1754097041750,-942.84,0.00020877,2]
[376743359,1754097041759,-460.0,0.00020878,2]
[376743361,1754097041769,-460.0,0.00020878,2]
[376743363,1754097041779,-460.0,0.00020878,2]
[376743365,1754097041788,-1068.73,0.00020878,2]
[376743367,1754097041797,-460.0,0.00020878,2]
[376743369,1754097041806,-623.02,0.00020878,2]
[376743371,1754097041818,-500.0,0.00020921,2]
[376743373,1754097041827,-1000.0,0.00020921,2]
[376743375,1754097041845,-420.0,0.00020958,2]
[376743377,1754097041855,-163.0,0.00020986,3]
[376743391,1754097041979,-1573.28936043,0.00021003,4]